Cogmind - Beta 13 @@@ ROGUE MODE // 2024.04.27 @ 14:29:22 Player: opaguck Result: Destroyed by X-67 Chaingunner with Minigun Performance ------------- Evolutions (3) 1500 Regions Visited (6) 1200 Robots Destroyed (29) 145 Value Destroyed (477) 477 Prototype IDs (23) 460 Alien Tech Used (0) 0 Bonus (505) 505 TOTAL SCORE: 4287 Bonus ------- High Alert Combat Kills 30 Follower Combat Kills 208 Aligned with FarCom 300 Friendly Fire -33 Cogmind --------- Core Integrity 0/700 Matter 229/300 Energy 100/100 System Corruption 9% Temperature Cool (0) Movement Core (50) Location -7/Factory Parts ------- > --- POWER (1) -------- (None) > --- PROPULSION (3) --- (None) > --- UTILITY (7) ------ Signal Interpreter Hacking Suite Hacking Suite > --- WEAPON (2) ------- (None) > --- INVENTORY (5) ---- (None) Peak State ------------ > --- POWER ------------ Light Nuclear Core > --- PROPULSION ------- Wheel Wheel Wheel > --- UTILITY ---------- Medium Storage Unit Sensor Array Signal Interpreter Improved Terrain Scanner Trap Reconfigurator > --- WEAPON ----------- EM Pulse Gun Rocket Launcher > --- INVENTORY -------- Light Nuclear Core Wheel Weight Redist. System Seismic Detector Targeting Computer Weapon Shielding Mining Laser [Rating: 25] Favorites ----------- Power Ion Engine Engine Ion Engine Power Core Light Nuclear Core Propulsion Wheel Wheel Wheel Hover Unit Airjet Utility Medium Storage Unit Device Seismic Detector Storage Medium Storage Unit Processor Signal Interpreter Hackware Hacking Suite Protection Weapon Shielding Weapon EM Pulse Gun Energy Gun EM Pulse Gun Ballistic Gun Gauss Rifle Launcher Rocket Launcher Special Weapon Mining Laser Build | -11 -10 -10 -10 -9 -8 -7 ------- Run | Yrd Mat Min Exi Min Mat Fac Slots Evolved 6 | . . . . . 4 2 Power . | . . . . . . . Propulsion 1 | . . . . . 1 . Utility 5 | . . . . . 3 2 Weapon . | . . . . . . . Parts Attached 36 | 7 8 . 2 1 8 10 Power 6 | 1 1 . . . 2 2 Engine 2 | 1 1 . . . . . Core 4 | . . . . . 2 2 Reactor . | . . . . . . . Propulsion 6 | 2 . . 1 . 2 1 Treads . | . . . . . . . Leg . | . . . . . . . Wheel 5 | 2 . . 1 . 2 . Hover 1 | . . . . . . 1 Flight . | . . . . . . . Utility 15 | 2 3 . . 1 4 5 Device 8 | 2 1 . . 1 3 1 Storage 2 | . 2 . . . . . Processor 2 | . . . . . 1 1 Hackware 2 | . . . . . . 2 Protection 1 | . . . . . . 1 Artifact . | . . . . . . . Weapon 9 | 2 4 . 1 . . 2 Energy Gun 4 | 2 2 . . . . . Energy Cannon . | . . . . . . . Ballistic Gun 1 | . . . . . . 1 Ballistic Cannon . | . . . . . . . Launcher 3 | . 2 . 1 . . . Special Weapon 1 | . . . . . . 1 Impact Weapon . | . . . . . . . Slashing Weapon . | . . . . . . . Piercing Weapon . | . . . . . . . Special Melee Weapon . | . . . . . . . Unidentified Prototypes . | . . . . . . . Corrupted Parts 1 | . . . . . . 1 System Corruption 4 | . . . . . . 4 Parts Lost 21 | . . . . . 10 11 Power 4 | . . . . . 2 2 Propulsion 5 | . . . . . 4 1 Utility 8 | . . . . . 2 6 Weapon 4 | . . . . . 2 2 Highest Loss Streak 5 | . . . . . 5 5 To Critical Strikes . | . . . . . . . Average Slot Usage (%) 87 | . 97 100 100 100 88 64 Engine 8 | . 13 14 14 14 . . Core 2 | . . . . . 7 5 Wheel 18 | . 28 28 28 28 20 . Hover 1 | . . . . . . 5 Device 17 | . 19 14 14 14 26 19 Storage 10 | . 7 14 14 14 9 6 Processor 5 | . . . . . 9 13 Protection 1 | . . . . . . 5 Energy Gun 12 | . 20 28 22 14 5 . Launcher 5 | . 8 . 5 14 8 . Special Weapon 1 | . . . . . . 5 Naked Turns . | . . . . . . . Heaviest Build 24 | 9 22 20 22 22 24 20 Greatest Support 30 | 20 20 20 20 20 30 8 Greatest Overweight (x) 6 | 1 1 . 1 1 5 6 Average Overweight (x) . | . . . . 1 . 1 Largest Inventory Capacity 10 | 5 10 10 10 10 10 10 Average Capacity 9 | 5 7 10 10 10 10 9 Most Carried 10 | 4 10 10 10 10 9 5 Average Carried 6 | 1 6 10 9 8 7 . Final Capacity 10 | 5 10 10 10 10 10 5 Final Carried 10 | 4 10 10 8 10 6 . Class Distribution -------------------- 75% | Mutant 16% | Skirmisher 7% | Scavenger-Skirmisher Dominant Class ---------------- Mutant | -10/Materials Mutant | -10/Mines Mutant | -10/Exiles Skirmisher | -9/Mines Scavenger-Skirmisher | -8/Materials Mutant | -7/Factory Resources | -11 -10 -10 -10 -9 -8 -7 ----------- Run | Yrd Mat Min Exi Min Mat Fac Matter Collected 580 | 270 86 . . 38 154 32 Remotely . | . . . . . . . Salvage Created 528 | 154 124 . . . 243 7 Parts 51 | 10 15 . . . 25 1 Haulers Intercepted 3 | . 1 . . . 2 . Recyclers Shooed . | . . . . . . . Parts Field Recycled . | . . . . . . . Retrieved Matter . | . . . . . . . Parts Self-Destructed . | . . . . . . . Prevented . | . . . . . . . Kills | -11 -10 -10 -10 -9 -8 -7 ------- Run | Yrd Mat Min Exi Min Mat Fac Combat Hostiles Destroyed 17 | . 6 . . . 10 1 Guns 3 | . 1 . . . 1 1 AOE 14 | . 5 . . . 9 . Classes Destroyed 10 | 2 3 . . . 4 1 Worker 2 | . . . . . 2 . Tunneler 3 | 3 . . . . . . Hauler 3 | . 1 . . . 2 . Recycler 1 | 1 . . . . . . Operator 1 | . . . . . 1 . Drone 1 | . . . . . 1 . Watcher 3 | . 2 . . . 1 . Swarmer 12 | . 6 . . . 6 . Grunt 3 | . . . . . 3 . Programmer 1 | . . . . . . 1 Best Kill Streak 9 | 4 3 . . . 9 1 Combat Bots Only 8 | . 3 . . . 8 1 Max Kills in Single Turn 3 | 2 3 . . . 3 1 Gunslinging . | . . . . . . . Exploded 3 | . 3 . . . 3 . Melee . | . . . . . . . Uniques/NPCs Destroyed . | . . . . . . . Combat | -11 -10 -10 -10 -9 -8 -7 -------- Run | Yrd Mat Min Exi Min Mat Fac Hostile Shots Fired 313 | . 16 . . . 78 219 Missed 110 | . 5 . . . 29 76 Damage Taken 2203 | 38 106 6 . . 698 1355 Core 935 | 38 8 . . . 187 702 Absorbed by Shields . | . . . . . . . Redirected to Shielding 49 | . . . . . . 49 Regen/Repaired (Parts) 10 | . 10 . . . . . Core Remaining (%) 77 | 84 . . . 81 66 . Volleys Fired 53 | 5 7 . . . 25 16 Largest 2 | 2 2 . . . 2 1 Hottest 100 | 80 80 . . . 73 100 Shots Fired 70 | 10 11 . . . 33 16 Gun 51 | 10 9 . . . 20 12 Cannon . | . . . . . . . Launcher 15 | . 2 . . . 13 . Special 4 | . . . . . . 4 Kinetic 12 | . . . . . . 12 Thermal 4 | . . . . . . 4 Explosive 15 | . 2 . . . 13 . Electromagnetic 39 | 10 9 . . . 20 . Robot Hit Streak 15 | 4 6 . . . 4 15 Robot Miss Streak 5 | 2 2 . . . 5 1 Penetration Max . | . . . . . . . Secondary Targets . | . . . . . . . Shots Hit Robots 40 | 7 5 . . . 15 13 Core Hits 47 | 3 10 . . . 32 2 Critical Kills . | . . . . . . . Critical Parts Destroyed . | . . . . . . . Critical Strikes 1 | . 1 . . . . . Corrupt 1 | . 1 . . . . . Melee Attacks . | . . . . . . . Impact . | . . . . . . . Slashing . | . . . . . . . Piercing . | . . . . . . . Sneak Attacks . | . . . . . . . Combat Hostiles . | . . . . . . . Follow-up Attacks . | . . . . . . . Damage Inflicted 2110 | 136 369 13 . . 1305 287 Guns 518 | 93 91 . . . 120 214 Cannons . | . . . . . . . Explosions 1502 | 43 274 . . . 1185 . Melee . | . . . . . . . Ramming 30 | . 4 13 . . . 13 Kinetic 214 | . . . . . . 214 Thermal 200 | 43 . . . . 97 60 Explosive 1362 | . 274 . . . 1088 . Electromagnetic 304 | 93 91 . . . 120 . Impact . | . . . . . . . Slashing . | . . . . . . . Piercing . | . . . . . . . Highest Corruption 9 | . . . . . . 9 Average Corruption 4 | . . . . . . 4 Corruption Purged . | . . . . . . . Corruption Blocked . | . . . . . . . Effects 4 | . . . . . . 4 Message Errors 1 | . . . . . . 1 Matter Fused 1 | . . . . . . 1 Energy Discharges 2 | . . . . . . 2 Overload Shots . | . . . . . . . Overflow Damage 92 | 13 . . . . 79 . Projectiles . | . . . . . . . Explosions 92 | 13 . . . . 79 . Melee . | . . . . . . . Knockbacks . | . . . . . . . Impact . | . . . . . . . Kinetic . | . . . . . . . Secondary . | . . . . . . . Self-Inflicted Damage 94 | 38 17 6 . . 28 5 Shots 3 | 1 1 . . . 1 . Rammed 7 | . 1 1 . . 1 4 Targets Rammed 7 | . 1 1 . . 1 4 Kicked . | . . . . . . . Crushed . | . . . . . . . Highest Temperature 48 | 48 18 . . . 45 . Average Temperature 17 | 20 11 . . . 19 . Received Heat Transfer 441 | . . . . . 189 252 Siege Activations . | . . . . . . . Robots Corrupted . | . . . . . . . Combat Hostiles . | . . . . . . . Parts Fried 1 | . 1 . . . . . Impact Corruptions . | . . . . . . . Robots Melted . | . . . . . . . Combat Hostiles . | . . . . . . . Parts Melted . | . . . . . . . Heat Transferred 250 | 50 . . . . 100 100 Parts Sabotaged . | . . . . . . . Parts Stolen . | . . . . . . . Parts Stripped . | . . . . . . . Power Chain Reactions 2 | 1 . . . . 1 . Alert | -11 -10 -10 -10 -9 -8 -7 ------- Run | Yrd Mat Min Exi Min Mat Fac Peak Influence 690 | 20 210 98 . . 690 295 Initial 291 | . 13 81 . . . 291 Average 141 | 8 117 80 . . 350 187 Maximum Alert Level 2 | . 1 . . . 2 1 Low Security (%) 70 | 100 77 100 . 100 42 49 Level 1 23 | . 22 . . . 15 50 Level 2 6 | . . . . . 42 . Level 3 . | . . . . . . . Level 4 . | . . . . . . . Level 5 . | . . . . . . . High Security . | . . . . . . . Max Security . | . . . . . . . Squads Dispatched 8 | . 2 . . . 2 4 Investigation 2 | . 1 . . . . 1 Extermination 2 | . . . . . . 2 Reinforcement 4 | . 1 . . . 2 1 Assault . | . . . . . . . Garrison . | . . . . . . . Intercept . | . . . . . . . Searches Triggered . | . . . . . . . Construction Impeded . | . . . . . . . Haulers Reinforced . | . . . . . . . Active Scanning Responses . | . . . . . . . Cargo Convoy Interrupts . | . . . . . . . Stealth | -11 -10 -10 -10 -9 -8 -7 --------- Run | Yrd Mat Min Exi Min Mat Fac Distress Signals 3 | . . . . . 2 1 Communications Jammed . | . . . . . . . Distress Signals . | . . . . . . . Times Spotted 51 | . 12 2 . . 31 6 Peak Tracking Total 9 | . 4 2 . . 9 4 Tactical Retreats 3 | . . 1 . . 1 1 Traps | -11 -10 -10 -10 -9 -8 -7 ------- Run | Yrd Mat Min Exi Min Mat Fac Traps Triggered . | . . . . . . . Indirectly . | . . . . . . . Trap Hack Attempts . | . . . . . . . Triggered . | . . . . . . . Disarmed . | . . . . . . . Reprogrammed . | . . . . . . . Reused . | . . . . . . . Traps Extracted . | . . . . . . . Installed . | . . . . . . . Triggered . | . . . . . . . Machines | -11 -10 -10 -10 -9 -8 -7 ---------- Run | Yrd Mat Min Exi Min Mat Fac Machines Disabled 4 | . . . . . 3 1 Max in Single Turn 2 | . . . . . 2 1 Machines Repaired . | . . . . . . . Machines Dismantled . | . . . . . . . Machines Sabotaged . | . . . . . . . Overloaded Fab Kills . | . . . . . . . Hacking | -11 -10 -10 -10 -9 -8 -7 --------- Run | Yrd Mat Min Exi Min Mat Fac Machines Accessed 8 | . 2 . 2 . 1 3 Terminals 4 | . 1 . . . . 3 Fabricators . | . . . . . . . Repair Stations 1 | . 1 . . . . . Recycling Units . | . . . . . . . Scanalyzers 1 | . . . . . 1 . Garrison Access . | . . . . . . . Total Hacks 18 | . 6 . 3 . 2 7 Successful 11 | . 2 . 3 . 2 4 Failed 7 | . 4 . . . . 3 Catastrophic 2 | . 1 . . . . 1 Database Lockouts . | . . . . . . . Manual 1 | . . . 1 . . . Terminals 9 | . 2 . . . . 7 Fabricators . | . . . . . . . Repair Stations 4 | . 4 . . . . . Recycling Units . | . . . . . . . Scanalyzers 2 | . . . . . 2 . Garrison Access . | . . . . . . . Terminal Hacks 7 | . . . 3 . . 4 Record 3 | . . . 2 . . 1 Unreport Threat 2 | . . . . . . 2 Locate Traps 1 | . . . . . . 1 Derelict Proto ID Bank 1 | . . . 1 . . . Fabricator Hacks . | . . . . . . . Repair Station Hacks 2 | . 2 . . . . . Scan Component 1 | . 1 . . . . . Repair 1 | . 1 . . . . . Recycling Unit Hacks . | . . . . . . . Scanalyzer 2 | . . . . . 2 . Insert Component 1 | . . . . . 1 . Analyze 1 | . . . . . 1 . Garrison Access Hacks . | . . . . . . . Unauthorized Hacks . | . . . . . . . Terminals . | . . . . . . . Fabricators . | . . . . . . . Repair Stations . | . . . . . . . Recycling Units . | . . . . . . . Scanalyzers . | . . . . . . . Garrison Access . | . . . . . . . Data Cores Recovered . | . . . . . . . Used . | . . . . . . . Hacking Detections 3 | . 2 . . . . 1 Full Trace Events 2 | . 1 . . . . 1 Feedback Events . | . . . . . . . Feedback Blocked . | . . . . . . . Robot Schematics Acquired . | . . . . . . . Robots Built . | . . . . . . . Authchips . | . . . . . . . Time . | . . . . . . . Total Robot Build Rating . | . . . . . . . Part Schematics Acquired 1 | . . . . . 1 . Parts Built . | . . . . . . . Authchips . | . . . . . . . Time . | . . . . . . . Total Part Build Rating . | . . . . . . . Parts Repaired 1 | . 1 . . . . . Time 38 | . 38 . . . . . Parts Recycled . | . . . . . . . Recycled Matter . | . . . . . . . Retrieved Matter . | . . . . . . . Retrieved Components . | . . . . . . . Parts Scanalyzed 1 | . . . . . 1 . Part Schematics Acquired 1 | . . . . . 1 . Parts Damaged . | . . . . . . . Bothacking | -11 -10 -10 -10 -9 -8 -7 ------------ Run | Yrd Mat Min Exi Min Mat Fac Used RIF Installer . | . . . . . . . Robots Hacked . | . . . . . . . Non-combat . | . . . . . . . Combat . | . . . . . . . Robot Hacks Applied . | . . . . . . . Relay Couplers Released . | . . . . . . . Fabnet Peak Effective % . | . . . . . . . Robots Rewired . | . . . . . . . Allies Hacked . | . . . . . . . Hacks Repelled . | . . . . . . . Allies | -11 -10 -10 -10 -9 -8 -7 -------- Run | Yrd Mat Min Exi Min Mat Fac Total Allies 4 | . . 3 . 1 . . Largest Group 3 | . . 3 1 2 2 . Highest-Rated Group 47 | . . 40 16 47 47 . Highest-Rated Ally 31 | . . 16 16 31 31 . Total Orders . | . . . . . . . Ally Attacks 45 | . . 12 . . 33 . Total Damage 596 | . . 129 . . 467 . Kills 8 | . . 1 . . 7 . Allies Corrupted . | . . . . . . . Allies Melted . | . . . . . . . Intel | -11 -10 -10 -10 -9 -8 -7 ------- Run | Yrd Mat Min Exi Min Mat Fac Robot Analysis Total . | . . . . . . . Derelict Logs Recovered . | . . . . . . . Drone Launches . | . . . . . . . Drone Recoveries . | . . . . . . . Exploration | -11 -10 -10 -10 -9 -8 -7 ------------- Run | Yrd Mat Min Exi Min Mat Fac Turns Passed 2755 | 72 347 163 493 551 340 789 Spaces Moved 2034 | 54 320 166 540 337 269 348 Core 171 | 11 . . . . 13 147 Treads . | . . . . . . . Legs . | . . . . . . . Wheels 1662 | 43 320 166 540 337 256 . Hover 201 | . . . . . . 201 Flight . | . . . . . . . Fastest Speed 50 | 50 80 80 80 95 80 50 Average Speed 97 | 75 82 80 84 95 91 147 Slowest Speed 350 | 100 95 80 95 95 300 350 Overloaded Moves . | . . . . . . . Propulsion Burnouts . | . . . . . . . Robots Hopped . | . . . . . . . Cave-ins Triggered . | . . . . . . . Exploration Rate (%) 38 | 3 56 21 82 56 45 8 Regions Visited 6 Branch Regions 3 Pre-discovered Areas . | . . . . . . . Known Exits Taken 1 | . . . . . 1 . Unknown Exits Taken 5 | 1 1 1 1 1 . . Scrap Searched 2 | . . . . 2 . . Spaces Dug . | . . . . . . . Terrain Destroyed 174 | 6 19 . . . 149 . Melee . | . . . . . . . Projectile . | . . . . . . . AOE 174 | 6 19 . . . 149 . Terrain Rammed . | . . . . . . . Walls Destroyed . | . . . . . . . Machines Disabled . | . . . . . . . Actions | -11 -10 -10 -10 -9 -8 -7 --------- Run | Yrd Mat Min Exi Min Mat Fac Total 2726 | 72 389 195 578 567 329 596 Wait 565 | . 43 29 24 228 23 218 Move 2030 | 53 320 165 539 336 269 348 Hop . | . . . . . . . Pick Up 24 | 7 7 . 5 2 3 . Fast Attach 14 | 4 4 . 1 . 1 4 Attach 17 | 3 . . 1 . 7 6 Detach . | . . . . . . . Swap 5 | . 4 . . 1 . . Drop 13 | . 4 . 8 . 1 . Fire 53 | 5 7 . . . 25 16 Melee . | . . . . . . . Ram 5 | . . 1 . . . 4 Kick . | . . . . . . . Crush . | . . . . . . . Escape Stasis . | . . . . . . . Rewire . | . . . . . . . Trap . | . . . . . . . Miscellaneous . | . . . . . . . Route ------- -11/Scrapyard -10/Materials (discovered 2 exits: [*Mat] / [*Min]) -10/Mines -10/Exiles -9/Mines -8/Materials -7/Factory History --------- Turn | Location | Event 4 | -11/Scrapyard | Discovered new exit (range 15) 73 | -11/Scrapyard | Entered Materials 140 | -10/Materials | Discovered new exit (range 14) 195 | -10/Materials | Repaired Imp. Terrain Scanner 309 | -10/Materials | Build established: Mutant 357 | -10/Materials | Discovered new exit (range 15) 420 | -10/Materials | Entered Mines 422 | -10/Mines | Assisted by bots powering up and referring to "LRC-V3" 499 | -10/Mines | Deemed a non-threat by the Exiles lab entrance 499 | -10/Mines | Discovered new exit (range 5) 529 | -10/Mines | Assembled infested the area 583 | -10/Mines | Entered Exiles 583 | -10/Exiles | Accompanied by 1 ally 599 | -10/Exiles | Discovered new exit (range 15) 623 | -10/Exiles | Met 8R-AWN 638 | -10/Exiles | Met EX-HEX 672 | -10/Exiles | Met EX-DEC 725 | -10/Exiles | Visited The Gauntlet 832 | -10/Exiles | Met EX-BIN 845 | -10/Exiles | Aligned with FarCom system 846 | -10/Exiles | Given EX-Vault access code 876 | -10/Exiles | Opened EX-Vault 884 | -10/Exiles | Found Prototype Device 889 | -10/Exiles | Identified Army-in-a-Box 891 | -10/Exiles | Found Trap Reconfigurator 932 | -10/Exiles | Warned to stay clear of 0b10 Research branches 1076 | -10/Exiles | Left Exiles lab with Trap Reconfigurator 1076 | -10/Exiles | Entered Mines 1076 | -9/Mines | Accompanied by 1 ally 1487 | -9/Mines | Build established: Skirmisher 1600 | -9/Mines | Discovered new exit (range 12) 1606 | -9/Mines | Received a Mining Laser from a helpful Derelict 1627 | -9/Mines | Entered Materials 1627 | -8/Materials | Accompanied by 2 allies 1627 | -8/Materials | Evolved 4 slots: Propulsion x1, Utility x3 1873 | -8/Materials | Destroyed 8 combat bots 1894 | -8/Materials | Lost 5 parts (1p3n1w) 1963 | -8/Materials | Discovered new exit (range 5) 1964 | -8/Materials | Identified exit to Factory 1967 | -8/Materials | Entered Factory 1967 | -7/Factory | Evolved 2 slots: Utility x2 1996 | -7/Factory | Lost 5 parts (1p1n2u1w) 2146 | -7/Factory | Build established: Mutant 2623 | -7/Factory | Lost 4 parts (1p1n1u1w) 2629 | -7/Factory | Core integrity fell below 50% 2667 | -7/Factory | Core integrity fell below 20% 2676 | -7/Factory | Lost 5 parts (4u1w) 2756 | -7/Factory | Destroyed by X-67 Chaingunner with Minigun Last Messages --------------- Mid-levels of [Complex 0b10] contain a majority of the fabrication facilities for manufacturing components and assembling robots. >>Alert(Purge) Purged threat record, alert level lowered. >>Alert(Purge) No threats on record. 02732_ ALERT: Suspicious activity at Terminal F006. Dispatching Investigation squad. 02737_ System corrupted: Energy discharge (-45). 02749_ Penetrated by Slug. 02749_ Terminal disabled. 02749_ Slammed into X-67 Chaingunner. 02750_ K-01 Serf destroyed. 02750_ Acquired 25 matter. 02751_ Slug penetrates H-55 Commando. 02755_ Slammed into X-67 Chaingunner. 02755_ Destabilizing: Core damaged (-14). 02756_ Mic. Nuclear Core destroyed. Map ----- +----------------------------------------------------+ | ?????????????????????????????????????????????????? | | ?????????????????????????????????????????????????? | | ?????????????????????????????????????????????????? | | ?????????????????????????????????????????????????? | | ?????????????????????????????????????????????????? | | ?????????????????????????????????????????????????? | | ?????????????????????????????????????????????????? | | ?????????????????????????????????????????????????? | | ?????????????????????????????????????????????????? | | ?????????????????????????????????????????????????? | | ?????????????????????????????????????????????????? | | ?????????????????????????????????????????????????? | | ?????????????????????????????????????????????????? | | ?????????????????????????????????????????????????? | | ?????????????????????????????????????????????????? | | ?????????????????????????????????????????????????? | | ??????????????????????????#+#????????????????????? | | ??????????????????p?H????? ????????????????????? | | ??????????????????????????# #????????????????????? | | ??????????????????????????# #????????????????????? | | ????????????????????####### #????????????????????? | | ????????????????????#!* ## #????????????????????? | | ????????????????????#* ## #????????????????????? | | ????????????????????# ##h##????????????#####??? | | ????????????????????# x#!u ############# #??? | | ????????????????????# @ = r + ""#??? | | ????????????????????# "" #*h ## # ""#??? | | ????????????????????# " ## ### # ""#??? | | ????????????????????# "" ## #?# +? S#??? | | ????????????????????# + #?# ##########? ""#??? | | ????????????????????#######"### #???????????""#??? | | ???????????????????????# + #???????????""#??? | | ???????????????????????# "" # #???????????? #??? | | ???????????????????????# ""S # ##########???##??? | | ???????????????????????# "" x #???????? | | ???????????????????????# # #???????? | | ???????????????????????# # """ #???????? | | ???????????????????????######## """ #???????? | | ??????????????????????????????# """ #???????? | | ??????????????????????????????# #???????? | | ??????????????????????????????# """ +???????? | | ??????????????????????????????# """ #???????? | | ??????????????????????????????# """ ######??? | | ????????????????????????????###^ ###+ | | ????????????????????????????# """ | | ????????????????????????????# """ | | ????????????????????????????# """ | | ????????????????????????????# | | ????????????????????????????# | | ????????????????????????????###+####### ###+ | +----------------------------------------------------+ Best States ------------- Heat Dissipation 34 Energy Generation 15 Energy Capacity 250 Matter Stores 300 Matter Capacity 300 Sight Range 16 Robot Scan Range 14 Terrain Scan Range 16 Terrain Scan Density 10 Additional Mass Support 6 Weapon Shielding 33 Evasion (%) 50 Targeting Accuracy 5 Offensive Hacking 20 Item Schematics ----------------- Hacking Suite | -8/Materials | Scanalyzed Robot Schematics ------------------ None Fabricated ------------ Nothing Alien Tech Used ----------------- None Achievements -------------- None Challenges ------------ None Game ------ Seed NetworkBackupSuperbattery Manual? 0 Play Time 00:35:42 Cumulative 18.9 hours Start 2024.04.27 @ 13:54:57 End 2024.04.27 @ 14:29:22 Sessions 1 Manual Loads 0 Difficulty Rogue Special Mode None Game No. 25 Rogue 25 Adventurer 0 Explorer 0 Win Type - Total 0 Types 0/0/0/0/0/0/0/0/0 Lore% 22 Gallery% 24 Achievement% 19 Wizard Run 0 Options --------- Layout 1 ASCII 0 Keyboard 0 Movement Numpad Keybinds 0 Fullscreen 2 Font 24/Smallcaps Map View 50x35 Zoom Use 0% Tactical HUD 1 Map Filters NONE Filters NONE Steam 1 RUN: f7d0e395-2e8a-4020-bebd-f06c9fb43843